[Event "76th GEO-ch Women 2019"]
[Site "Tbilisi"]
[Date "2019.03.26"]
[Round "7.4"]
[White "Tsatsalashvili, Keti"]
[Black "Khukhashvili, Sopiko"]
[Result "0-1"]
[ECO "A41"]
[WhiteElo "2326"]
[BlackElo "2342"]
[Annotator "NA"]
[PlyCount "80"]
[EventDate "2019.03.19"]
[EventType "swiss"]
[EventCountry "GEO"]
[SourceTitle "playchess.com"]
[Source "ChessBase"]
[SourceQuality "1"]
[TimeControl "40/5400+30:1800+30"]

{[%evp 14,68,-2,-25,-21,-27,0,-38,-21,-53,-16,-27,-30,-36,-40,-43,-28,-66,-62,-69,-81,-92,-43,-39,-25,-39,-16,-38,-67,-68,-68,-48,-66,-66,-60,-75,-55,-82,-24,-25,-41,-30,-31,-66,-56,-59,-82,-107,-136,-134,-13,-16,-48,-254,-260,-344,-571]} 1. d4 {[%emt 0:00:00]} d6 {[%emt 0:00:00]} 2. c4 {[%emt 0:00:20]} e5 {[%emt 0:00:00]} 3. Nf3 {[%emt 0:02:35]} e4 {[%emt 0:00:00]} 4. Nfd2 {[%emt 0:00:14]} f5 {[%emt 0:00:00]} 5. g3 {[%emt 0:01:20]} (5. Nc3 Nf6 6. e3 g6 7. b4 Bg7 8. Bb2 O-O 9. Be2 c6 10. h4 h5 11. g3 d5 12. a4 Be6 13. c5 Nbd7 14. b5 Ng4 15. Qb3 {0-1 (39) Fedoseev,V (2718)-Mamedov,R (2709) Riadh 2017}) 5... Nf6 {[%emt 0:00:12]} 6. Bg2 {[%emt 0:00:51] A41: 1 d4 d6: Tartakower System and Modern Defence} g6 {[%emt 0:00:47]} 7. O-O {[%emt 0:02:00]} Bg7 {[%emt 0:03:13]} 8. e3 {[%emt 0:01:06]} c6 $146 {[%emt 0:00:29]} ({Predecessor:} 8... O-O 9. b4 c6 10. Bb2 Be6 11. Nc3 Nbd7 12. Qe2 {0-1 (57) Loviscek,M (2021)-Srebrnic,V (2201) Nova Gorica 2002}) 9. b4 {[%emt 0:02:24]} Na6 {[%emt 0:01:20]} 10. a3 {[%emt 0:00:35]} Nc7 {[%emt 0:01:05]} 11. Bb2 {[%emt 0:00:56]} Be6 {[%emt 0:11:11]} 12. Qc2 {[%emt 0:01:23]} O-O {[%emt 0:01:06]} 13. Nc3 {[%emt 0:01:17]} Rc8 {[%emt 0:02:31]} 14. a4 {[%emt 0:03:33]} d5 {[%emt 0:02:14]} 15. c5 {[%emt 0:02:35]} h5 {[%emt 0:00:15]} 16. b5 {[%emt 0:01:24]} h4 {[%emt 0:00:20]} 17. Nb3 {[%emt 0:03:10]} Nce8 {[%emt 0:00:49]} 18. Ne2 {[%emt 0:08:11]} hxg3 {[%emt 0:06:48]} 19. fxg3 {[%emt 0:02:52]} Qd7 {[%emt 0:00:07]} 20. bxc6 {[%emt 0:02:53]} bxc6 {[%emt 0:08:42]} 21. Rab1 {[%emt 0:09:41]} Bh6 {[%emt 0:03:54]} 22. Bc1 {[%emt 0:01:01]} Ng7 {[%emt 0:04:29]} 23. Bd2 {[%emt 0:04:22]} Ngh5 {[%emt 0:02:37]} 24. Na5 {[%emt 0:01:49]} Rc7 {[%emt 0:00:17]} 25. Rb3 {[%emt 0:01:08]} g5 {[%emt 0:00:13]} (25... Qh7 $17) 26. Qb2 $1 {[%emt 0:02:27]} Rf7 {[%emt 0:00:54]} 27. Rb8+ {[%emt 0:11:38]} Kh7 {[%emt 0:00:13]} 28. Qc3 {[%emt 0:03:02]} Qe7 {[%emt 0:05:43]} 29. Bc1 {[%emt 0:07:46]} Bc8 {[%emt 0:01:38]} 30. Qb2 {[%emt 0:00:10]} Ng4 {[%emt 0:06:35]} 31. Nc3 {[%emt 0:07:35]} Bg7 $11 {[%emt 0:04:38]} (31... Qd7 $17 32. Qe2 Rf8) 32. Qe2 {[%emt 0:05:32]} Qe6 {[%emt 0:01:47]} 33. Nb3 $2 {[%emt 0:05:17]} (33. Bh3 $1 $15) 33... Qh6 {[%emt 0:00:49]} 34. Bh1 {[%emt 0:00:06] [#]} Ba6 $1 {[%emt 0:03:24]} 35. Nb5 cxb5 {[%emt 0:01:32]} 36. axb5 {[%emt 0:02:04]} Bc8 {[%emt 0:00:25]} 37. Bd2 {[%emt 0:02:05]} Be6 {[%emt 0:00:33]} 38. Rd8 {[%emt 0:02:21]} Bf8 {[%emt 0:06:20]} 39. Be1 {[%emt 0:00:43]} f4 {[%emt 0:02:09]} 40. h3 {[%emt 0:00:00]} Nxe3 {[%emt 0:00:00]} 0-1

[Event "76th GEO-ch Women 2019"]
[Site "Tbilisi"]
[Date "2019.03.26"]
[Round "7.5"]
[White "Esadze, Tamari"]
[Black "Mikadze, Miranda"]
[Result "0-1"]
[ECO "B44"]
[WhiteElo "2078"]
[BlackElo "2266"]
[Annotator "NA"]
[PlyCount "92"]
[EventDate "2019.03.19"]
[EventType "swiss"]
[EventCountry "GEO"]
[SourceTitle "playchess.com"]
[Source "ChessBase"]
[SourceQuality "1"]
[TimeControl "40/5400+30:1800+30"]

{[%evp 13,60,2,6,32767,32767,32767,32767,32767,32767,32767,32767,0,0,7,0,0,6,8,0,0,7,0,0,-2,7,0,0,0,2,14,-8,-8,-17,-8,-14,-2,0,-12,-8,-15,0,-26,22,-107,-84,-91,-99,-127,-8]} 1. e4 {[%emt 0:00:00]} c5 {[%emt 0:00:00]} 2. Nf3 {[%emt 0:00:00]} e6 {[%emt 0:00:00]} 3. d4 {[%emt 0:00:00]} cxd4 {[%emt 0:00:00]} 4. Nxd4 {[%emt 0:00:00]} Nc6 {[%emt 0:00:00]} 5. c4 {[%emt 0:03:34]} Nf6 {[%emt 0:00:05]} 6. Nc3 {[%emt 0:00:05]} Bb4 {[%emt 0:00:20]} 7. Nxc6 {[%emt 0:05:04]} bxc6 {[%emt 0:00:09]} 8. Bd3 {[%emt 0:01:50]} e5 {[%emt 0:00:10]} 9. O-O {[%emt 0:00:56]} O-O {[%emt 0:00:08]} 10. Bg5 {[%emt 0:03:55]} h6 {[%emt 0:00:27] B44: Sicilian: Taimanov: 5 Nb5} 11. Bh4 {[%emt 0:00:49]} Bc5 {[%emt 0:01:19]} 12. Kh1 {[%emt 0:03:54]} d6 {[%emt 0:04:50]} 13. f3 {[%emt 0:06:11]} Bd4 {[%emt 0:04:20]} (13... Be6 14. Qc2 Rb8 15. Rad1 Bd4 16. b3 g5 17. Bf2 c5 18. Nb5 {½-½ (59) Nakamura,H (2789)-Gelfand,B (2777) Wijk aan Zee 2014}) 14. Rc1 $146 {[%emt 0:06:52]} ({Predecessor:} 14. Rb1 g5 15. Bf2 Bxc3 16. bxc3 c5 17. Qd2 Kg7 18. Be2 {½-½ (96) Lee,K (1913)-Bea,B (2109) Budapest 2011}) 14... Rb8 {[%emt 0:02:44]} 15. b3 {[%emt 0:01:11]} Be6 {[%emt 0:04:57]} 16. Ne2 {[%emt 0:06:43]} Be3 {[%emt 0:03:51]} 17. Rc3 {[%emt 0:05:36]} g5 {[%emt 0:08:30]} 18. Bg3 {[%emt 0:05:54]} c5 {[%emt 0:11:06]} 19. Bb1 {[%emt 0:04:42]} Bd4 $1 {[%emt 0:01:45]} 20. Rc1 {[%emt 0:02:30]} Nd7 {[%emt 0:04:06]} 21. Nc3 {[%emt 0:06:04]} Rb7 {[%emt 0:06:14]} 22. Bf2 {[%emt 0:01:48]} Nb8 {[%emt 0:07:18]} 23. Bxd4 {[%emt 0:03:42]} cxd4 {[%emt 0:00:09]} 24. Nd5 {[%emt 0:00:11]} a5 {[%emt 0:02:59]} 25. Bc2 {[%emt 0:02:54]} Na6 {[%emt 0:00:16]} 26. Qd2 {[%emt 0:02:21]} Kg7 {[%emt 0:03:43]} 27. g3 {[%emt 0:02:24]} a4 {[%emt 0:09:03]} (27... f5 $15) 28. bxa4 {[%emt 0:04:00]} (28. f4 $11) 28... Rb2 {[%emt 0:01:32]} 29. Rb1 {[%emt 0:04:46]} Rxa2 {[%emt 0:01:33]} 30. Qc1 {[%emt 0:02:46]} Nc5 $11 {[%emt 0:00:15]} (30... Bxd5 $17 31. cxd5 Nc5) 31. Nb4 {[%emt 0:04:11]} Bxc4 {[%emt 0:02:21]} 32. Nxa2 {[%emt 0:00:11]} Bxa2 {[%emt 0:00:06]} 33. Rb4 {[%emt 0:02:33]} Qa5 {[%emt 0:02:28]} 34. Qb2 {[%emt 0:00:51]} Be6 {[%emt 0:04:27]} 35. Rd1 {[%emt 0:02:01]} Rc8 {[%emt 0:00:39]} 36. Rb5 {[%emt 0:00:59]} Nxa4 {[%emt 0:01:39]} 37. Bxa4 {[%emt 0:03:03]} Qxa4 {[%emt 0:00:05]} 38. Rd2 {[%emt 0:03:24]} Bh3 {[%emt 0:07:40]} 39. Kg1 {[%emt 0:00:02]} Rc3 {[%emt 0:00:27]} 40. Kf2 {[%emt 0:00:00]} Qc4 {[%emt 0:00:00]} 41. Qb1 {[%emt 0:21:24]} Rc1 {[%emt 0:04:38]} 42. Qd3 {[%emt 0:00:14]} Rf1+ {[%emt 0:01:18]} 43. Ke2 {[%emt 0:00:04]} Qc1 {[%emt 0:00:06]} 44. Qc2 {[%emt 0:04:38]} Qe1+ {[%emt 0:00:35]} 45. Kd3 {[%emt 0:00:04]} Rxf3+ {[%emt 0:00:14]} 46. Kc4 {[%emt 0:00:04]} Rc3+ {[%emt 0:01:58] Kxd4} 0-1

[Event "76th GEO-ch Women 2019"]
[Site "Tbilisi"]
[Date "2019.03.26"]
[Round "7.6"]
[White "Vakhania, Aleksandra"]
[Black "Arabidze, Meri"]
[Result "0-1"]
[ECO "A06"]
[WhiteElo "2175"]
[BlackElo "2392"]
[Annotator "NA"]
[PlyCount "84"]
[EventDate "2019.03.19"]
[EventType "swiss"]
[EventCountry "GEO"]
[SourceTitle "playchess.com"]
[Source "ChessBase"]
[SourceQuality "1"]
[TimeControl "40/5400+30:1800+30"]

{[%evp 11,62,0,0,-6,-2,0,-7,-63,-54,-52,-28,-18,-26,-39,-34,-66,-63,-79,-49,-58,-67,-71,-70,-66,-43,-56,-52,-37,-30,-39,-33,-34,-26,-29,-25,-61,-57,-55,-15,-91,-64,-89,-91,-93,-99,-97,-97,-123,-114,-155,-170,-385,-372]} 1. Nf3 {[%emt 0:00:00]} d5 {[%emt 0:00:00]} 2. g3 {[%emt 0:00:00]} Nf6 {[%emt 0:00:08]} 3. Bg2 {[%emt 0:00:00]} g6 {[%emt 0:00:11]} 4. O-O {[%emt 0:02:33]} Bg7 {[%emt 0:00:03]} 5. d3 {[%emt 0:04:13]} O-O {[%emt 0:01:01]} 6. Nbd2 {[%emt 0:00:47]} c5 {[%emt 0:00:23]} 7. e4 {[%emt 0:00:43]} dxe4 {[%emt 0:00:28]} 8. dxe4 {[%emt 0:03:11] A08: King's Indian Attack} Nc6 {[%emt 0:00:11]} 9. e5 {[%emt 0:02:27]} ({White should play} 9. c3 $11) (9. Qe2 e5 10. c3 Qc7 11. Nc4 {1-0 (49) Artemiev,V (2691)-Bortnyk,O (2610) Riadh 2017}) 9... Ng4 $1 $146 {[%emt 0:05:05]} ({Predecessor:} 9... Nd7 10. Nc4 Ncxe5 11. Ncxe5 Nxe5 12. Qe2 Bg4 13. h3 Bxf3 14. Bxf3 Nxf3+ 15. Qxf3 Qc8 {0-1 (44) Mercurio,R (1333)-Paragliola,G (1529) Cutro 2006}) 10. Ne4 {[%emt 0:00:56]} Qxd1 {[%emt 0:10:52]} 11. Rxd1 {[%emt 0:00:07]} Ngxe5 {[%emt 0:00:22]} 12. Nxe5 {[%emt 0:03:23]} Nxe5 {[%emt 0:00:16]} 13. Nxc5 {[%emt 0:00:03]} Bg4 {[%emt 0:02:09]} 14. Rd5 {[%emt 0:08:15]} Nf3+ {[%emt 0:13:28]} 15. Kh1 {[%emt 0:02:16]} Ne1 {[%emt 0:03:10]} 16. Bh6 {[%emt 0:14:01]} Nxg2 {[%emt 0:12:23]} 17. Bxg7 {[%emt 0:00:07]} Kxg7 {[%emt 0:01:56]} 18. Kxg2 {[%emt 0:00:34]} Rfc8 {[%emt 0:06:35]} 19. c3 {[%emt 0:14:26]} e6 {[%emt 0:03:40]} 20. Rd4 $1 {[%emt 0:00:48]} Rxc5 {[%emt 0:00:35]} 21. Rxg4 {[%emt 0:00:04]} Rd8 {[%emt 0:00:04]} 22. Rb4 {[%emt 0:00:18]} b6 {[%emt 0:00:36]} 23. a4 {[%emt 0:04:41]} Rd2 {[%emt 0:04:31]} 24. Rb5 {[%emt 0:00:05]} Rc4 {[%emt 0:04:37]} 25. a5 {[%emt 0:03:10]} (25. Kf3 $1 $11) 25... bxa5 $1 {[%emt 0:01:26]} 26. Kf3 {[%emt 0:00:44] [#]} a6 $1 {[%emt 0:05:48]} 27. Ke3 {[%emt 0:09:52]} axb5 {[%emt 0:04:33]} 28. Kxd2 {[%emt 0:00:05]} a4 {[%emt 0:00:04]} 29. Kd3 {[%emt 0:03:06]} e5 {[%emt 0:02:46]} 30. f3 {[%emt 0:02:28] [#]} f5 $1 {[%emt 0:00:28]} 31. b3 $2 {[%emt 0:05:58]} (31. Ke2) 31... axb3 $19 {[%emt 0:01:13]} 32. Rb1 {[%emt 0:06:05]} e4+ {[%emt 0:02:13]} 33. Kd2 {[%emt 0:01:43]} b4 {[%emt 0:03:33]} 34. cxb4 {[%emt 0:00:53]} Rxb4 {[%emt 0:00:15]} 35. Kc3 {[%emt 0:01:44]} Rb7 {[%emt 0:00:39]} 36. fxe4 {[%emt 0:01:59]} fxe4 {[%emt 0:00:07]} 37. Kd4 {[%emt 0:00:48]} b2 {[%emt 0:00:53]} 38. Kxe4 {[%emt 0:00:20]} Kf6 {[%emt 0:00:30]} 39. h4 {[%emt 0:01:39]} h5 {[%emt 0:01:19]} 40. Rf1+ {[%emt 0:00:00]} Ke6 {[%emt 0:00:00]} 41. Rb1 {[%emt 0:04:13]} Rb4+ {[%emt 0:01:00]} 42. Kd3 {[%emt 0:00:36]} Kf5 {[%emt 0:00:12] Kd4} 0-1

[Event "76th GEO-ch Women 2019"]
[Site "Tbilisi"]
[Date "2019.03.27"]
[Round "8.1"]
[White "Melia, Salome"]
[Black "Arabidze, Meri"]
[Result "0-1"]
[ECO "C55"]
[WhiteElo "2385"]
[BlackElo "2392"]
[Annotator "NA"]
[PlyCount "80"]
[EventDate "2019.03.19"]
[EventType "swiss"]
[EventCountry "GEO"]
[SourceTitle "playchess.com"]
[Source "ChessBase"]
[SourceQuality "1"]
[TimeControl "40/5400+30:1800+30"]

{[%evp 8,57,0,-15,17,14,26,-8,-7,-11,-25,-7,-25,-8,-16,-17,10,15,0,0,7,-2,0,0,0,32767,0,0,0,0,7,0,0,0,0,-5,0,-22,-4,-191,-192,-193,-230,-190,-137,-157,-157,-150,-175,-177,-184,-174]} 1. e4 {[%emt 0:00:00]} e5 {[%emt 0:01:15]} 2. Nf3 {[%emt 0:00:00]} Nc6 {[%emt 0:00:04]} 3. d4 {[%emt 0:00:32]} exd4 {[%emt 0:00:34]} 4. Bc4 {[%emt 0:00:21]} Nf6 {[%emt 0:00:31]} 5. e5 {[%emt 0:00:18]} Ng4 {[%emt 0:00:22]} 6. O-O {[%emt 0:00:25]} d6 {[%emt 0:01:05]} 7. Bg5 {[%emt 0:19:07] C56: Two Knights: 4 d4 exd4 5 0-0 Nxe4} (7. exd6 Qxd6 8. Na3 a6 9. h3 Nh6 10. Re1+ Be7 11. Bg5 Nf5 12. Bb3 O-O 13. Nc4 Qd8 14. Bxe7 Nfxe7 15. Nce5 {½-½ (32) Efimenko,Z (2654)-Short,N (2706) Mukachevo 2009}) 7... Be7 {[%emt 0:06:16]} 8. Bxe7 {[%emt 0:00:19]} Qxe7 {[%emt 0:00:38]} 9. exd6 {[%emt 0:01:58]} Qxd6 {[%emt 0:01:05]} 10. Re1+ {[%emt 0:00:37]} Be6 {[%emt 0:03:44]} 11. h3 {[%emt 0:08:02]} Nge5 {[%emt 0:07:38]} 12. Nxe5 {[%emt 0:02:48]} Nxe5 {[%emt 0:00:13]} 13. Bxe6 {[%emt 0:00:47]} fxe6 {[%emt 0:00:34]} 14. Qh5+ {[%emt 0:05:41]} Ng6 {[%emt 0:00:59] [#]} 15. Qb5+ $146 {[%emt 0:03:11]} c6 {[%emt 0:00:36]} 16. Qxb7 {[%emt 0:00:12]} O-O {[%emt 0:00:27]} 17. Nd2 {[%emt 0:04:38]} Nf4 {[%emt 0:17:27]} 18. Ne4 {[%emt 0:15:10]} Qd5 {[%emt 0:00:29]} 19. b3 {[%emt 0:01:31]} e5 {[%emt 0:08:48]} 20. Rad1 {[%emt 0:02:10]} Qe6 {[%emt 0:02:20]} 21. Ng3 {[%emt 0:09:44]} Qf6 {[%emt 0:02:41]} 22. Rd2 {[%emt 0:09:07]} Qg5 {[%emt 0:10:32]} 23. Rdd1 $2 {[%emt 0:00:12] [#]} (23. Qb4 $1 $11) 23... h5 $1 {[%emt 0:01:24]} 24. h4 {[%emt 0:04:52]} Qxh4 {[%emt 0:00:56]} 25. Qxc6 {[%emt 0:02:48]} Qg5 {[%emt 0:02:00]} 26. Qc4+ {[%emt 0:04:32]} Rf7 {[%emt 0:03:51]} 27. Qf1 {[%emt 0:04:35]} Raf8 {[%emt 0:01:50]} 28. Ne4 {[%emt 0:00:46]} Qg6 {[%emt 0:00:21]} 29. Kh2 $19 {[%emt 0:00:59]} h4 {[%emt 0:07:19]} 30. Rd2 {[%emt 0:00:13]} Kh8 {[%emt 0:01:56]} 31. c3 {[%emt 0:02:59]} d3 {[%emt 0:04:33]} 32. Re3 {[%emt 0:01:19]} Qg4 {[%emt 0:04:47]} 33. c4 {[%emt 0:00:28]} a5 {[%emt 0:04:13]} 34. f3 {[%emt 0:00:38]} Qh5 {[%emt 0:00:55]} 35. Rdxd3 {[%emt 0:00:30]} Nxd3 {[%emt 0:00:33]} 36. Qxd3 {[%emt 0:00:20]} h3 {[%emt 0:02:06]} 37. g4 {[%emt 0:00:37]} Qh4 {[%emt 0:00:31]} 38. Ng3 {[%emt 0:00:32]} Rd8 {[%emt 0:01:22]} 39. Qe2 {[%emt 0:00:30]} Rfd7 {[%emt 0:00:26]} 40. Rxe5 {[%emt 0:00:00]} Rd2 {[%emt 0:00:00]} 0-1

[Event "76th GEO-ch Women 2019"]
[Site "Tbilisi"]
[Date "2019.03.27"]
[Round "8.2"]
[White "Mikadze, Miranda"]
[Black "Vakhania, Aleksandra"]
[Result "1-0"]
[ECO "B22"]
[WhiteElo "2266"]
[BlackElo "2175"]
[Annotator "NA"]
[PlyCount "79"]
[EventDate "2019.03.19"]
[EventType "swiss"]
[EventCountry "GEO"]
[SourceTitle "playchess.com"]
[Source "ChessBase"]
[SourceQuality "1"]
[TimeControl "40/5400+30:1800+30"]

{[%evp 8,55,29,33,27,25,45,21,31,20,31,48,36,22,29,22,37,17,21,2,8,7,23,19,44,32,52,10,47,59,107,97,132,122,137,146,132,150,182,271,180,237,211,235,235,279,299,310,351,490]} 1. e4 {[%emt 0:00:00]} c5 {[%emt 0:11:27]} 2. c3 {[%emt 0:00:56]} g6 {[%emt 0:01:11]} 3. d4 {[%emt 0:00:18]} cxd4 {[%emt 0:00:16]} 4. cxd4 {[%emt 0:00:08]} d5 {[%emt 0:00:06]} 5. e5 {[%emt 0:00:03]} Bg7 {[%emt 0:00:25]} 6. Nf3 {[%emt 0:00:43]} Nh6 {[%emt 0:00:16] B27: Sicilian: 2 Nf3, unusual Black 2nd moves} 7. Nc3 {[%emt 0:04:37] LiveBook: 24 Games} O-O {[%emt 0:01:00]} 8. h3 {[%emt 0:03:02]} Nc6 {[%emt 0:00:13]} 9. Bb5 {[%emt 0:04:35]} f6 {[%emt 0:00:42]} 10. exf6 {[%emt 0:03:52]} exf6 {[%emt 0:00:45]} 11. O-O {[%emt 0:00:04]} Be6 {[%emt 0:01:23]} (11... Nf7 12. Re1 Qd6 13. Be3 Bf5 14. Rc1 Rac8 {0-1 (46) Grischuk,A (2772)-Mamedov,R (2709) Huaian 2017}) 12. Re1 {[%emt 0:00:27]} Bf7 {[%emt 0:00:22]} 13. Bxc6 {[%emt 0:12:34]} bxc6 {[%emt 0:00:22]} 14. Na4 {[%emt 0:00:08]} Qd6 {[%emt 0:04:45]} 15. Bd2 {[%emt 0:01:11]} g5 {[%emt 0:02:10]} 16. Nc5 $146 {[%emt 0:07:31]} Rfe8 {[%emt 0:00:28]} 17. Bb4 {[%emt 0:01:02]} Bh5 {[%emt 0:04:39]} 18. Qb3 {[%emt 0:10:28]} a5 {[%emt 0:09:59]} (18... Bxf3 $14 19. Qxf3 f5) 19. Rxe8+ {[%emt 0:02:55]} Rxe8 {[%emt 0:08:34]} 20. Bxa5 {[%emt 0:00:52]} f5 {[%emt 0:01:08]} 21. Nxg5 {[%emt 0:13:54]} Bxd4 {[%emt 0:00:36] [#]} 22. Nce6 $1 {[%emt 0:00:39]} Rxe6 {[%emt 0:03:04]} 23. Nxe6 {[%emt 0:00:26]} Qxe6 {[%emt 0:00:06]} 24. Re1 {[%emt 0:03:03]} Qd6 {[%emt 0:07:28]} 25. Bc3 {[%emt 0:03:40]} Bxc3 {[%emt 0:00:25]} 26. bxc3 {[%emt 0:00:13]} Nf7 {[%emt 0:04:23]} 27. a4 {[%emt 0:02:57]} Ng5 {[%emt 0:06:39]} 28. a5 $18 {[%emt 0:03:54]} Nxh3+ 29. gxh3 Bf3 {[%emt 0:29:33]} 30. Rb1 {[%emt 0:05:37]} Qg6+ {[%emt 0:00:20]} 31. Kf1 {[%emt 0:00:13]} Qg2+ {[%emt 0:00:17]} 32. Ke1 {[%emt 0:00:02]} Qg1+ {[%emt 0:00:18]} 33. Kd2 {[%emt 0:00:02]} Qxf2+ {[%emt 0:00:10]} 34. Kc1 {[%emt 0:00:05]} Be4 {[%emt 0:00:53]} 35. Qb8+ {[%emt 0:08:56]} Kf7 {[%emt 0:02:07]} 36. Rb7+ {[%emt 0:00:10]} Kg6 {[%emt 0:00:17]} 37. Qd6+ {[%emt 0:01:53]} Kg5 {[%emt 0:01:03]} 38. Rg7+ {[%emt 0:00:15]} Kh5 {[%emt 0:00:09]} 39. Rxh7+ {[%emt 0:00:06]} Kg5 {[%emt 0:00:04]} 40. Qh6# {[%emt 0:00:00]} 1-0

[Event "76th GEO-ch Women 2019"]
[Site "Tbilisi"]
[Date "2019.03.27"]
[Round "8.3"]
[White "Khukhashvili, Sopiko"]
[Black "Esadze, Tamari"]
[Result "1-0"]
[ECO "B53"]
[WhiteElo "2342"]
[BlackElo "2078"]
[Annotator "NA"]
[PlyCount "115"]
[EventDate "2019.03.19"]
[EventType "swiss"]
[EventCountry "GEO"]
[SourceTitle "playchess.com"]
[Source "ChessBase"]
[SourceQuality "1"]
[TimeControl "40/5400+30:1800+30"]

1. e4 {[%emt 0:00:00]} c5 {[%emt 0:00:00]} 2. Nf3 {[%emt 0:00:00]} d6 {[%emt 0:00:00]} 3. d4 {[%emt 0:00:00]} cxd4 {[%emt 0:00:00]} 4. Qxd4 {[%emt 0:00:00]} Nc6 {[%emt 0:00:00]} 5. Bb5 {[%emt 0:00:00]} Bd7 {[%emt 0:00:05]} 6. Bxc6 {[%emt 0:00:00]} Bxc6 {[%emt 0:00:03]} 7. Nc3 {[%emt 0:00:00]} Nf6 {[%emt 0:01:14]} 8. Bg5 {[%emt 0:00:00]} e6 {[%emt 0:00:52]} 9. O-O-O {[%emt 0:00:05]} Be7 {[%emt 0:00:18]} 10. Qd3 {[%emt 0:00:28]} O-O {[%emt 0:01:25]} 11. Nd4 {[%emt 0:00:08]} Qa5 {[%emt 0:10:16] B53: Sicilian: 2...d6: Lines with Qxd4} 12. Bd2 {[%emt 0:03:41]} (12. h4 Rfc8 13. f4 Bd7 14. Nb3 Qb4 15. a3 Qc4 16. e5 Nd5 17. Nxd5 exd5 18. Bxe7 Qxf4+ 19. Rd2 {½-½ (46) Ma,Q (2613)-Wang,H (2734) China 2014}) 12... Qc7 {[%emt 0:04:44]} 13. Rhe1 {[%emt 0:00:32]} a6 {[%emt 0:04:14]} 14. f3 {[%emt 0:00:37]} b5 {[%emt 0:01:28]} 15. g4 $146 {[%emt 0:01:47]} ({Predecessor:} 15. Nxc6 Qxc6 16. g4 b4 17. Ne2 d5 18. e5 Nd7 19. Nd4 {1-0 (54) David,G (2265)-Karmov,M (2385) ICCF corr 1993}) 15... Nd7 {[%emt 0:05:06]} ({Black should try} 15... Rfc8 $15) 16. Nd5 $1 {[%emt 0:10:44]} Bxd5 {[%emt 0:17:29]} 17. exd5 {[%emt 0:00:03]} Ne5 {[%emt 0:11:38]} (17... Bh4 $11) 18. Qe2 {[%emt 0:00:23]} (18. Qb3 $1 $14) 18... Bh4 {[%emt 0:05:56]} 19. Rf1 {[%emt 0:02:18]} Qc5 {[%emt 0:07:43]} ({Of course not} 19... exd5 $6 20. Nf5 $14) 20. Nb3 {[%emt 0:16:26]} Qc4 {[%emt 0:09:42]} 21. Qg2 {[%emt 0:00:50]} (21. Qxc4 $11 {keeps the balance.} Nxc4 22. Na5) 21... Rac8 {[%emt 0:02:51]} ({Much worse is} 21... Qxd5 $6 22. Bb4 $11) 22. Be3 {[%emt 0:01:10] [#]} Nd3+ $1 {[%emt 0:04:03]} 23. Kb1 {[%emt 0:00:02]} ({Don't blunder} 23. Rxd3 $2 Qxd3 24. Bc5 Rxc5 $19 {[%mdl 64] Remove Defender}) 23... Nb4 {[%emt 0:00:35]} 24. Bc1 {[%emt 0:07:02]} Nxc2 {[%emt 0:07:04]} ({Not} 24... Nxd5 25. Rd4 $16) 25. Na5 {[%emt 0:27:13]} Qc5 {[%emt 0:01:57]} 26. dxe6 {[%emt 0:02:17]} Qb6 {[%emt 0:05:57]} (26... fxe6 $17 27. Nb7 Qb4) 27. Nb3 {[%emt 0:05:13]} (27. Qh3 $11) 27... fxe6 {[%emt 0:00:38]} 28. g5 {[%emt 0:00:32]} Rc4 $14 {[%emt 0:03:22]} ({Black should try} 28... Ne3 $15 29. Bxe3 Qxe3) 29. f4 {[%emt 0:01:07]} Rfc8 {[%emt 0:00:42]} 30. Qh3 {[%emt 0:00:46]} Be1 {[%emt 0:02:21]} 31. Qxe6+ {[%emt 0:01:24]} Kh8 {[%emt 0:00:02]} 32. Rfxe1 {[%emt 0:01:37]} Nxe1 {[%emt 0:00:04]} 33. Rxe1 {[%emt 0:00:06]} Qc6 {[%emt 0:00:13]} 34. Bd2 {[%emt 0:00:58]} d5 {[%emt 0:01:19]} 35. Qxc6 {[%emt 0:04:19]} R4xc6 {[%emt 0:00:02]} 36. Bc3 {[%emt 0:00:25]} Kg8 {[%emt 0:00:32]} 37. f5 {[%emt 0:01:10]} Kf7 {[%emt 0:00:29]} 38. h4 {[%emt 0:03:51]} g6 {[%emt 0:01:05]} 39. Nd4 {[%emt 0:02:49]} Rc4 {[%emt 0:00:38]} 40. a3 {[%emt 0:00:00]} Re8 {[%emt 0:00:00]} 41. fxg6+ {[%emt 0:02:02]} hxg6 {[%emt 0:00:45]} 42. Rf1+ {[%emt 0:00:05]} Ke7 {[%emt 0:05:23]} 43. Rf6 {[%emt 0:00:42]} Rg8 {[%emt 0:02:53]} 44. Rxa6 {[%emt 0:00:27]} Ra4 {[%emt 0:00:39]} 45. Rb6 {[%emt 0:00:48]} Kd7 {[%emt 0:01:54]} 46. Rxb5 {[%emt 0:00:29]} Kd6 {[%emt 0:00:04]} 47. Rb6+ {[%emt 0:00:51]} Ke5 {[%emt 0:00:24]} 48. b3 {[%emt 0:04:36]} Raa8 {[%emt 0:00:31]} 49. Rf6 {[%emt 0:00:47]} Ke4 {[%emt 0:00:28]} 50. Nb5 {[%emt 0:02:02]} Rab8 {[%emt 0:01:33]} 51. a4 {[%emt 0:00:13]} Kd3 {[%emt 0:00:13]} 52. Kb2 {[%emt 0:00:58]} Rbe8 {[%emt 0:00:58]} 53. Rd6 {[%emt 0:01:43]} Re2+ {[%emt 0:00:12]} 54. Ka3 {[%emt 0:00:02]} Re4 {[%emt 0:01:29]} 55. Rxd5+ {[%emt 0:00:22]} Kc2 {[%emt 0:00:11]} 56. Rd2+ {[%emt 0:00:31]} Kc1 {[%emt 0:00:04]} 57. Rh2 {[%emt 0:00:14]} Rd8 {[%emt 0:00:17]} 58. Bb2+ {[%emt 0:00:05]} 1-0